bitfinex/quotes_SOLUSD_20250403
["timestamp","ask_amount","ask_price","bid_price","bid_amount"]
[1743719650939,54.45071587,117.04,116.98,21.3711]
[1743719650940,54.45071587,117.04,116.99,34.45391587]
[1743719651355,28.5441,117.04,116.99,34.45391587]
[1743719651546,28.5441,117.04,117.0,25.90661587]
[1743719651755,54.45071587,117.04,117.0,25.90661587]
[1743719652158,45.90661587,117.04,117.0,25.90661587]
[1743719652354,45.90661587,117.04,116.99,34.45391587]
[1743719653962,54.45071587,117.04,116.99,34.45391587]
[1743719654265,51.44,117.03,116.99,34.45391587]
[1743719654561,71.72432314,117.02,116.98,25.90661587]
[1743719654758,71.72432314,117.02,116.97,25.90661587]
[1743719654759,97.63093901,117.02,116.97,25.90661587]
[1743719654950,51.44,117.02,116.98,25.90661587]
[1743719656667,51.44,117.02,116.98,34.45461587]
[1743719656842,59.9856,117.02,116.98,34.45461587]
[1743719657259,51.44,117.02,116.98,34.45461587]
[1743719657838,59.9855,117.02,116.98,34.45461587]
[1743719658967,51.44,117.02,116.98,34.45461587]
[1743719660446,59.9856,117.02,116.98,34.45461587]
[1743719661077,105.89221587,117.02,116.97,34.45551587]
[1743719662070,71.44,117.02,116.98,25.90661587]
[1743719662266,51.44,117.02,116.98,25.90661587]
[1743719663373,51.44,117.02,116.97,29.9219]
[1743719663577,105.89231587,117.02,116.97,34.45551587]
[1743719663758,77.34661587,116.99,116.94,8.5513]
[1743719663963,97.63093901,116.98,116.93,25.90661587]
[1743719664267,8.5492,116.97,116.93,34.45831587]
[1743719664650,106.17973901,116.98,116.93,34.45831587]
[1743719664872,25.90661587,116.97,116.93,34.45831587]
[1743719665079,106.17973901,116.98,116.93,34.45831587]
[1743719665256,106.17973901,116.98,116.94,25.90661587]
[1743719665663,106.17973901,116.98,116.93,34.45831587]
[1743719665869,80.27312314,116.98,116.93,34.45831587]
[1743719666062,97.63093901,116.98,116.93,34.45831587]
[1743719666252,106.17943901,116.98,116.93,34.45831587]
[1743719667473,189.6856,117.0,116.94,25.90661587]
[1743719667474,34.45471587,116.99,116.94,25.90661587]
[1743719667655,25.90661587,116.99,116.94,25.90661587]
[1743719667869,25.90661587,116.99,116.95,25.90661587]
[1743719669175,25.90661587,116.99,116.94,25.90661587]
[1743719670081,16.59566612,116.99,116.94,25.14696612]
[1743719671175,232.86728926,117.0,116.95,16.59566612]
[1743719671380,172.87998926,117.0,116.95,16.59566612]
[1743719671680,156.28432314,117.0,116.95,16.59566612]
[1743719671883,172.87998926,117.0,116.95,16.59566612]
[1743719672685,172.87998926,117.0,116.96,8.5499]
[1743719673069,36.87998926,117.0,116.96,8.5499]
[1743719673863,45.42698926,117.0,116.96,8.5499]
[1743719674286,68.03566612,116.99,116.96,8.5499]
[1743719674778,1.5367,117.01,116.96,25.14556612]
[1743719674959,18.13236612,117.01,116.97,16.59566612]
[1743719675669,1.5367,117.01,116.97,16.59566612]
[1743719675870,51.44,117.02,116.97,16.59566612]
[1743719676070,75.69566612,117.03,116.98,16.59566612]
[1743719676271,16.59566612,117.02,116.97,16.59566612]
[1743719676959,16.59566612,117.02,116.98,8.5484]
[1743719677154,76.58126612,117.02,116.98,8.5484]
[1743719677371,88.31998926,117.0,116.95,25.14626612]
[1743719677577,51.72432314,117.0,116.96,16.59566612]
[1743719678181,36.59566612,117.02,116.97,16.59566612]
[1743719679484,96.58126612,117.02,116.98,8.5484]
[1743719679673,88.31998926,117.0,116.95,16.59566612]
[1743719680076,51.44,117.0,116.96,16.59566612]
[1743719680793,16.59566612,116.98,116.94,25.14696612]
[1743719681486,0.28432314,116.99,116.94,25.14696612]
[1743719681674,68.31998926,116.99,116.94,25.14696612]
[1743719682493,68.31998926,116.99,116.94,8.5513]
[1743719682664,68.31998926,116.99,116.94,16.59566612]
[1743719682665,76.86798926,116.99,116.94,16.59566612]
[1743719683990,76.86798926,116.99,116.95,8.5506]
[1743719685090,16.59566612,116.99,116.95,8.5506]
[1743719685263,25.14336612,116.99,116.95,8.5506]
[1743719685466,8.5477,116.99,116.95,8.5506]
[1743719685674,25.14336612,116.99,116.95,8.5506]
[1743719686681,16.59566612,116.96,116.93,8.5521]
[1743719686876,16.59566612,116.96,116.92,8.5524]
[1743719688492,16.59566612,116.94,116.89,1.6592]
[1743719688695,16.59566612,116.94,116.88,21.388]
[1743719689098,16.59566612,116.93,116.89,8.555]
[1743719689677,16.59566612,116.93,116.89,25.15066612]
[1743719689994,24.29566612,116.95,116.9,16.59566612]
[1743719690182,1.5276,116.96,116.92,16.59566612]
[1743719690585,1.5276,116.96,116.93,16.59566612]
[1743719691096,1.5276,116.96,116.89,29.9426]
[1743719691395,1.5276,116.96,116.92,16.59566612]
[1743719691698,18.12326612,116.96,116.92,16.59566612]
[1743719692297,18.12326612,116.96,116.93,8.5521]
[1743719693706,26.67316612,116.96,116.92,25.14816612]
[1743719693881,26.67316612,116.96,116.92,8.5525]
[1743719694697,16.87998926,116.95,116.91,25.14886612]
[1743719694997,16.59566612,116.93,116.9,8.5539]
[1743719695779,16.59566612,116.93,116.89,8.5547]
[1743719696199,16.59566612,116.93,116.89,25.15036612]
[1743719696602,16.59566612,116.93,116.89,8.5547]
[1743719696779,16.59566612,116.93,116.89,16.59566612]
[1743719696980,25.14786612,116.93,116.89,16.59566612]
[1743719698098,25.14786612,116.93,116.88,25.15136612]
[1743719698305,16.59566612,116.92,116.88,8.5557]
[1743719698886,16.59566612,116.92,116.88,25.15136612]
[1743719699086,36.59566612,116.93,116.88,25.15136612]
[1743719699303,7.7,116.94,116.9,16.59566612]
[1743719699500,7.7,116.94,116.91,16.59566612]
[1743719699696,38.12326612,116.96,116.91,16.59566612]
[1743719700196,16.59566612,116.95,116.89,6.6502]
[1743719700387,16.59566612,116.93,116.88,8.5557]
[1743719700586,16.59566612,116.93,116.88,25.15136612]
[1743719700781,72.9676,116.96,116.91,8.5535]
[1743719701013,89.56326612,116.96,116.91,46.53306612]
[1743719701189,16.87998926,116.95,116.91,8.5535]
[1743719702202,1.5276,116.96,116.92,16.59566612]
[1743719702402,16.59566612,116.97,116.92,16.59566612]
[1743719702913,16.59566612,116.97,116.93,8.5521]
[1743719703490,71.72432314,116.98,116.93,25.14776612]
[1743719703683,18.10726612,116.99,116.94,16.59566612]
[1743719704511,18.10726612,116.99,116.95,16.59566612]
[1743719704704,26.65516612,116.99,116.94,16.59566612]
[1743719705089,26.65516612,116.99,116.94,8.5509]
[1743719705090,36.87998926,116.98,116.94,8.5509]
[1743719706610,25.86726612,116.99,116.94,25.14656612]
[1743719707194,7.76,116.99,116.95,16.59566612]
[1743719707506,68.31998926,117.0,116.95,16.59566612]
[1743719707996,16.87998926,116.99,116.94,29.9293]
[1743719708201,16.59566612,116.97,116.94,8.5509]
[1743719708712,36.59566612,116.98,116.94,8.5509]
[1743719709195,16.59566612,116.98,116.94,8.5509]
[1743719709522,51.44,116.97,116.94,8.5509]
[1743719709693,16.59566612,116.98,116.94,8.5509]
[1743719710514,16.87998926,116.99,116.94,25.14656612]
[1743719710923,16.59566612,116.98,116.94,8.5509]
[1743719712100,16.87998926,116.99,116.94,46.52496612]
[1743719712913,16.59566612,116.98,116.94,8.5509]
[1743719713117,16.59566612,116.97,116.94,8.5509]
[1743719714324,45.14406612,116.98,116.93,16.59566612]
[1743719714897,36.3071,117.0,116.94,16.59566612]
[1743719715102,36.59566612,116.96,116.92,8.5528]
[1743719716413,18.23896612,116.97,116.92,25.14846612]
[1743719716798,20.0,116.98,116.93,16.59566612]
[1743719716998,16.59566612,116.99,116.94,16.59566612]
[1743719717509,44.35566612,117.0,116.94,16.59566612]
[1743719718017,36.59566612,117.0,116.94,16.59566612]
[1743719718196,36.59566612,117.0,116.95,8.5506]
[1743719719004,36.59566612,117.0,116.95,25.14626612]
[1743719719717,45.14276612,117.0,116.95,25.14626612]
[1743719719925,51.44,116.99,116.95,25.14626612]
[1743719720106,51.44,116.99,116.95,8.5506]
[1743719721739,51.44,116.99,116.95,29.9272]
[1743719721927,51.44,116.99,116.95,46.52286612]
[1743719723034,20.0,117.0,116.96,16.59566612]
[1743719723331,20.0,117.0,116.97,16.59566612]
[1743719723832,51.44,117.02,116.99,16.59566612]
[1743719724029,51.44,117.02,116.98,16.59566612]
[1743719724421,51.44,117.02,116.95,86.8402]
[1743719724622,51.44,117.02,116.98,16.59566612]
[1743719725629,36.87998926,117.01,116.95,36.3869]
[1743719725931,36.87998926,117.01,116.96,16.59566612]
[1743719725932,88.31998926,117.01,116.96,16.59566612]
[1743719726135,88.31998926,117.01,116.95,29.9272]
[1743719726136,68.03566612,117.0,116.95,46.52286612]
[1743719726330,51.44,117.0,116.96,16.59566612]
[1743719726514,20.28432314,117.01,116.97,25.14486612]
[1743719726930,68.03566612,117.02,116.97,25.14486612]
[1743719727117,68.03566612,117.02,116.97,46.51786612]
[1743719727718,76.58116612,117.02,116.97,46.51786612]
[1743719728334,88.31998926,117.01,116.97,8.5492]
[1743719728536,96.86658926,117.01,116.96,25.14536612]
[1743719728847,89.93138926,116.99,116.94,25.14696612]
[1743719730548,98.47908926,116.99,116.94,25.14696612]
[1743719731122,89.93138926,116.99,116.94,25.14696612]
[1743719733440,89.93138926,116.99,116.94,46.52536612]
[1743719733647,73.33572314,116.99,116.94,46.52536612]
[1743719734025,89.93138926,116.99,116.94,46.52536612]
[1743719736650,98.47908926,116.99,116.94,46.52536612]
[1743719736837,89.93138926,116.99,116.94,46.52536612]
[1743719737935,73.33572314,116.99,116.94,46.52536612]
[1743719740740,73.33572314,116.99,116.95,16.59566612]
[1743719741348,73.33572314,116.99,116.94,29.9297]
[1743719741657,98.47918926,116.99,116.94,46.52536612]
[1743719741861,89.93138926,116.99,116.94,46.52536612]
[1743719744964,51.72432314,116.97,116.93,8.5517]
[1743719745164,88.31998926,116.97,116.93,8.5517]
[1743719745565,96.86928926,116.97,116.92,25.14826612]
[1743719746461,96.86928926,116.97,116.92,8.5526]
[1743719747781,136.0,116.98,116.94,16.59566612]
[1743719747989,136.0,116.98,116.92,8.5526]
[1743719747990,136.0,116.98,116.95,16.59566612]
[1743719748277,18.10136612,117.02,116.97,16.59566612]
[1743719748652,18.10136612,117.02,116.95,8.5506]
[1743719748858,69.54136612,117.02,116.97,16.59566612]
[1743719749180,52.9457,117.02,116.97,16.59566612]
[1743719749560,52.9457,117.02,116.98,16.59566612]
[1743719749876,71.44,117.03,116.99,16.59566612]
[1743719750756,71.44,117.03,117.0,8.547]
[1743719751066,68.03566612,117.04,117.0,8.547]
[1743719752194,51.44,117.04,117.0,46.51016612]
[1743719752375,71.44,117.07,117.02,16.59566612]
[1743719752690,88.03566612,117.07,117.02,16.59566612]
[1743719753253,88.03566612,117.07,117.04,8.544]
[1743719753653,97.33232632,117.07,117.04,8.544]
[1743719753877,71.44,117.07,117.04,8.544]
[1743719754374,20.0,117.07,117.04,8.544]
[1743719755385,35.03702632,117.08,117.03,34.43682632]
[1743719755585,43.57822632,117.08,117.03,34.43682632]
[1743719755974,46.17664946,117.07,117.03,8.5445]
[1743719756178,46.17664946,117.07,117.02,8.5451]
[1743719756179,25.89232632,117.06,117.02,8.5451]
[1743719756967,25.89232632,117.06,117.02,34.43742632]
[1743719757265,71.72432314,117.07,117.02,34.43742632]
[1743719757266,46.17664946,117.07,117.02,34.43742632]
[1743719757496,20.0,117.07,117.03,25.89232632]
[1743719758262,45.89232632,117.07,117.02,55.80122632]
[1743719760858,26.17664946,117.06,117.02,8.5451]
[1743719761289,77.61664946,117.06,117.02,8.5451]
[1743719761501,51.72432314,117.06,117.02,34.43742632]
[1743719761664,0.28432314,117.06,117.02,34.43742632]
[1743719762192,20.0,117.07,117.02,34.43742632]
[1743719762597,35.32134946,117.08,117.03,25.89232632]
[1743719763191,27.68134946,117.08,117.03,25.89232632]
[1743719764194,27.68134946,117.08,117.04,8.544]
[1743719764398,51.44,117.07,117.04,8.544]
[1743719764604,20.0,117.09,117.06,25.89232632]
[1743719764767,1.5047,117.11,117.07,25.89232632]
[1743719765697,25.89232632,117.12,117.07,25.89232632]
[1743719765862,25.89232632,117.12,117.05,1.5765]
[1743719765863,25.89232632,117.12,117.08,25.89232632]
[1743719766064,21.5047,117.14,117.09,25.89232632]
[1743719766260,20.0,117.14,117.11,25.89232632]
[1743719767277,20.0,117.14,117.1,25.89232632]
[1743719767865,34.42852632,117.15,117.11,25.89232632]
[1743719768106,25.89232632,117.15,117.11,25.89232632]
[1743719768400,46.17664946,117.14,117.08,21.3518]
[1743719768598,46.17664946,117.14,117.09,25.89232632]
[1743719768902,25.89232632,117.13,117.09,25.89232632]
[1743719769302,54.71354946,117.14,117.09,25.89232632]
[1743719769495,54.71354946,117.14,117.09,34.43272632]
[1743719769671,8.5363,117.15,117.1,25.89232632]
[1743719769870,34.42862632,117.15,117.1,25.89232632]
[1743719770379,25.89232632,117.15,117.1,25.89232632]
[1743719770586,198.04792632,117.16,117.11,25.89232632]
[1743719770791,62.04792632,117.16,117.11,25.89232632]
[1743719771019,25.89232632,117.13,117.09,8.5404]
[1743719771317,45.89232632,117.13,117.09,8.5404]
[1743719771489,54.42992632,117.13,117.09,8.5404]
[1743719771691,25.89232632,117.11,117.06,8.5424]
[1743719771880,25.89232632,117.1,117.06,8.5424]
[1743719772081,45.89232632,117.11,117.06,34.43472632]
[1743719772320,25.89232632,117.11,117.06,34.43472632]
[1743719772522,145.52322314,117.12,117.06,34.43472632]
[1743719772819,171.41554946,117.12,117.07,25.89232632]
[1743719773496,25.89232632,117.11,117.08,8.5411]
[1743719774115,145.2389,117.12,117.08,8.5411]
[1743719774300,9.2389,117.12,117.08,34.43342632]
[1743719774504,35.13122632,117.12,117.08,8.5411]
[1743719774807,25.89232632,117.13,117.08,34.43342632]
[1743719775021,34.42982632,117.13,117.08,34.43342632]
[1743719775909,25.89232632,117.11,117.06,33.57232632]
[1743719776214,25.89232632,117.11,117.06,25.89232632]
[1743719776215,45.89232632,117.11,117.06,25.89232632]
[1743719776712,25.89232632,117.09,117.05,25.89232632]
[1743719777021,25.89232632,117.09,117.04,34.43632632]
[1743719777221,25.89232632,117.09,117.05,25.89232632]
[1743719777911,25.89232632,117.09,117.05,34.43492632]
[1743719779391,34.71674946,117.1,117.05,34.43492632]
[1743719779590,26.17664946,117.1,117.05,34.43492632]
[1743719780614,26.17664946,117.1,117.06,25.89232632]
[1743719781617,7.68,117.12,117.08,25.89232632]
[1743719781815,20.0,117.13,117.08,25.89232632]
[1743719782117,25.89232632,117.14,117.09,25.89232632]
[1743719782609,25.89232632,117.14,117.1,25.89232632]
[1743719782810,25.89232632,117.13,117.08,25.89232632]
[1743719783020,25.89232632,117.13,117.07,29.8965]
[1743719783197,25.89232632,117.13,117.08,25.89232632]
[1743719783516,8.5382,117.12,117.08,34.43302632]
[1743719783712,46.17664946,117.11,117.07,8.5418]
[1743719784118,26.17664946,117.11,117.07,8.5418]
[1743719784324,25.89232632,117.1,117.07,8.5418]
[1743719785005,46.17664946,117.11,117.07,8.5418]
[1743719785616,54.71584946,117.11,117.07,8.5418]
[1743719786318,28.82352314,117.11,117.07,8.5418]
[1743719786522,54.71584946,117.11,117.07,8.5418]
[1743719787914,25.89232632,117.1,117.07,8.5418]
[1743719788828,25.89232632,117.09,117.06,8.5422]
[1743719789204,25.89232632,117.1,117.06,8.5422]
[1743719789825,51.44,117.09,117.06,8.5422]
[1743719790226,77.61664946,117.11,117.06,34.43452632]
[1743719790726,25.89232632,117.12,117.07,25.89232632]
[1743719791524,97.61664946,117.11,117.06,34.43452632]
[1743719791706,25.89232632,117.1,117.06,8.5422]
[1743719791907,97.61664946,117.11,117.06,34.43452632]
[1743719792232,97.61664946,117.11,117.06,55.79102632]
[1743719792727,106.15564946,117.11,117.06,55.79102632]
[1743719792932,25.89232632,117.1,117.06,8.5422]
[1743719793107,25.89232632,117.09,117.06,8.5422]
[1743719793828,51.44,117.1,117.06,8.5422]
[1743719794030,77.33232632,117.1,117.06,8.5422]
[1743719794433,85.87202632,117.1,117.06,8.5422]
[1743719795114,85.87202632,117.1,117.05,25.89232632]
[1743719795115,25.89232632,117.09,117.05,8.5433]
[1743719797932,25.89232632,117.06,117.0,7.5265]
[1743719798106,25.89232632,117.06,117.01,25.89232632]
[1743719798834,25.89232632,117.06,117.01,34.43852632]
[1743719799205,163.4769,117.09,117.01,34.43852632]
[1743719799206,193.5659,117.09,117.03,25.89232632]
[1743719799426,25.89232632,117.07,117.03,25.89232632]
[1743719799626,25.89232632,117.07,117.02,25.89232632]
[1743719799837,25.89232632,117.06,117.02,25.89232632]
[1743719800136,25.89232632,117.06,117.01,8.5462]
[1743719800137,25.89232632,117.04,117.01,8.5462]
[1743719800323,25.89232632,117.05,117.01,8.5462]
[1743719801133,34.43572632,117.05,117.01,8.5462]
[1743719803011,25.89232632,117.05,117.01,8.5462]
[1743719804423,77.33232632,117.07,117.02,25.89232632]
[1743719805328,77.33232632,117.07,117.03,8.5448]
[1743719806036,25.89232632,117.06,117.03,8.5448]
[1743719807636,59.9819,117.07,117.02,8.5455]
[1743719807831,25.89232632,117.06,117.02,8.5455]
[1743719809740,25.89232632,117.04,117.01,8.5458]
[1743719809920,51.44,117.04,117.01,8.5458]
[1743719813746,51.44,117.04,117.0,16.57805799]
[1743719814047,51.44,117.04,116.99,29.9164]
[1743719814252,51.44,117.04,117.0,16.57805799]
[1743719815551,68.01805799,117.04,116.99,46.49445799]
[1743719815846,16.57805799,117.03,116.98,25.12645799]
[1743719816148,16.57805799,117.02,116.98,8.5484]
[1743719816356,84.30254751,117.04,116.99,16.57805799]
[1743719816527,16.57805799,117.03,116.99,16.57805799]
[1743719817131,16.57805799,117.03,116.98,46.49755799]
[1743719818753,16.57805799,117.03,116.99,16.57805799]
[1743719819850,16.57805799,117.03,116.98,46.49755799]
[1743719820054,68.01805799,117.03,116.98,46.49755799]
[1743719823648,51.44,117.03,116.99,16.57805799]
[1743719824947,16.57805799,117.04,117.0,46.49255799]
[1743719825145,25.80675799,117.05,117.0,46.49255799]
[1743719825755,18.12675799,117.05,117.0,46.49255799]
[1743719825953,16.57805799,117.06,117.01,16.57805799]
[1743719827447,16.57805799,117.06,117.02,29.9093]
[1743719830370,16.57805799,117.07,117.02,46.48735799]
[1743719830667,18.18175799,117.08,117.04,16.57805799]
[1743719830977,16.57805799,117.07,117.02,46.48735799]
[1743719831161,18.18175799,117.08,117.03,16.57805799]
[1743719831958,18.18175799,117.08,117.04,8.544]
[1743719832763,18.18175799,117.08,117.04,29.9042]
[1743719833855,16.57805799,117.07,117.04,26.0]
[1743719834159,68.01805799,117.07,117.04,26.0]
[1743719834378,21.6037,117.08,117.05,26.0]
[1743719834671,53.0865,117.11,117.05,42.57805799]
[1743719834969,16.57805799,117.1,117.05,42.57805799]
[1743719835155,16.57805799,117.09,117.05,26.0]
[1743719835897,16.57805799,117.09,117.06,8.5426]
[1743719839598,1.6465,117.11,117.06,29.8991]
[1743719839806,95.90181043,117.13,117.08,16.57805799]
[1743719839807,16.57805799,117.13,117.08,16.57805799]
[1743719840096,16.57805799,117.13,117.09,8.5404]
[1743719842680,29.47654165,117.13,117.09,8.5404]
[1743719842881,16.57805799,117.11,117.08,8.5407]
[1743719843283,16.57805799,117.12,117.08,8.5407]
[1743719843481,16.57805799,117.12,117.08,29.8936]
[1743719844574,16.57805799,117.12,117.08,8.5407]
[1743719844774,16.57805799,117.11,117.08,8.5407]
[1743719846286,16.57805799,117.12,117.08,8.5407]
[1743719846675,16.57805799,117.12,117.08,29.8936]
[1743719849593,51.44,117.11,117.08,29.8936]
[1743719849798,16.57805799,117.12,117.08,29.8936]
[1743719851597,16.57805799,117.11,117.08,8.5407]
[1743719851778,16.57805799,117.09,117.07,8.5418]
[1743719851979,36.57805799,117.09,117.06,8.5422]
[1743719852687,16.57805799,117.1,117.06,8.5422]
[1743719853101,16.57805799,117.1,117.05,29.8999]
[1743719853300,16.57805799,117.1,117.05,46.47795799]
[1743719853797,16.57805799,117.11,117.06,16.57805799]
[1743719855516,25.11705799,117.11,117.07,8.5418]
[1743719860112,16.57805799,117.1,117.07,8.5418]
[1743719861009,16.57805799,117.09,117.06,8.5422]
[1743719861509,16.57805799,117.08,117.04,8.544]
[1743719862187,16.57805799,117.09,117.04,46.48225799]
[1743719862392,152.57805799,117.11,117.06,16.57805799]
[1743719862699,16.57805799,117.11,117.06,16.57805799]
[1743719862899,16.57805799,117.1,117.05,16.57805799]
[1743719864008,44.19805799,117.11,117.07,8.5418]
[1743719866506,24.19805799,117.11,117.07,8.5418]
[1743719869009,16.57805799,117.1,117.07,8.5418]
[1743719870411,16.57805799,117.1,117.06,29.8985]
[1743719870800,24.19805799,117.11,117.06,29.8985]
[1743719871003,16.57805799,117.1,117.06,8.5426]
[1743719871394,44.19805799,117.11,117.06,25.12065799]
[1743719871595,24.19805799,117.11,117.06,25.12065799]
[1743719871818,7.62,117.11,117.07,16.57805799]
[1743719872218,42.45244165,117.13,117.08,16.57805799]
[1743719872518,42.45244165,117.13,117.09,8.5404]
[1743719872895,38.09165799,117.13,117.09,8.5404]
[1743719874415,16.57805799,117.14,117.09,46.46945799]
[1743719874618,16.57805799,117.13,117.09,29.8914]
[1743719875006,16.57805799,117.12,117.09,8.5404]
[1743719876120,16.57805799,117.12,117.08,8.5411]
[1743719876697,16.57805799,117.12,117.08,29.894]
[1743719876897,16.57805799,117.11,117.08,8.5411]
[1743719877193,16.57805799,117.12,117.08,8.5411]
[1743719878419,16.57805799,117.12,117.07,37.93175799]
[1743719879020,16.57805799,117.12,117.08,16.57805799]
[1743719879400,16.57805799,117.12,117.09,8.5404]
[1743719880416,51.44,117.11,117.09,8.5404]
[1743719880620,16.57805799,117.12,117.09,8.5404]
[1743719883026,16.57805799,117.12,117.08,8.5411]
[1743719884000,16.57805799,117.13,117.08,46.47205799]
[1743719884411,1.5146,117.16,117.11,16.57805799]
[1743719884624,26.80153229,117.19,117.14,16.57805799]
[1743719884625,36.57805799,117.19,117.14,16.57805799]
[1743719884803,1.6269,117.2,117.14,16.57805799]
[1743719885122,16.57805799,117.19,117.15,8.536]
[1743719885424,1.6269,117.2,117.15,25.11405799]
[1743719885425,18.20495799,117.2,117.15,25.11405799]
[1743719885916,18.20495799,117.2,117.15,46.45415799]
[1743719888006,16.57805799,117.19,117.15,8.536]
[1743719888211,16.57805799,117.18,117.15,8.536]
[1743719888405,16.57805799,117.19,117.15,8.536]
[1743719889103,45.11135799,117.19,117.15,8.536]
[1743719890730,51.44,117.18,117.15,8.536]
[1743719891021,68.01805799,117.17,117.1,29.3621]
[1743719891234,16.57805799,117.15,117.1,45.94015799]
[1743719891400,16.57805799,117.15,117.1,37.92695799]
[1743719891918,68.01805799,117.15,117.1,37.92695799]
[1743719892130,68.01805799,117.14,117.08,21.3523]
[1743719892425,68.01805799,117.14,117.09,16.57805799]
[1743719892806,68.01805799,117.14,117.09,25.11845799]
[1743719893726,76.55485799,117.14,117.09,25.11845799]
[1743719893925,16.13455079,117.12,117.09,8.5404]
[1743719894109,16.57805799,117.13,117.09,8.5404]
[1743719894312,51.44,117.14,117.09,25.11845799]
[1743719894510,76.55495799,117.14,117.09,25.11845799]
[1743719894711,16.57805799,117.13,117.09,8.5404]
[1743719896030,68.01805799,117.14,117.09,25.11845799]
[1743719896226,136.0,117.16,117.11,16.57805799]
[1743719896408,16.57805799,117.16,117.12,16.57805799]
[1743719897024,16.57805799,117.16,117.13,8.5375]
[1743719897224,1.546,117.18,117.13,8.5375]
[1743719897504,16.57805799,117.17,117.13,8.5375]
[1743719897710,16.57805799,117.16,117.13,8.5375]
[1743719898124,67.86805799,117.17,117.13,8.5375]
[1743719898310,16.57805799,117.17,117.13,8.5375]
[1743719898622,61.37,117.18,117.13,8.5375]
[1743719898818,16.57805799,117.17,117.13,8.5375]
[1743719899328,16.57805799,117.16,117.13,8.5375]
[1743719900731,51.29,117.16,117.13,8.5375]
[1743719901136,51.29,117.16,117.13,46.45935799]
[1743719901721,52.9363,117.21,117.15,16.57805799]
[1743719901921,52.9363,117.21,117.17,16.57805799]
[1743719902532,69.51435799,117.21,117.16,16.57805799]
[1743719903114,51.29,117.21,117.17,16.57805799]
[1743719903334,67.86805799,117.22,117.17,16.57805799]
[1743719903538,67.86805799,117.22,117.18,8.5338]
[1743719903717,16.57805799,117.21,117.18,8.5338]
[1743719904814,51.29,117.22,117.18,8.5338]
[1743719905016,16.57805799,117.21,117.18,8.5338]
[1743719905941,16.57805799,117.2,117.17,8.5343]
[1743719906948,0.28432314,117.21,117.16,29.8726]
[1743719907241,16.57805799,117.2,117.16,29.8726]
[1743719908128,203.86805799,117.22,117.17,16.57805799]
[1743719909030,203.86805799,117.22,117.18,8.5338]
[1743719909628,203.86805799,117.22,117.18,29.8684]
[1743719909831,187.29,117.22,117.18,29.8684]
[1743719910038,203.86805799,117.22,117.18,29.8684]
[1743719910940,136.0,117.22,117.18,29.8684]
[1743719911146,136.0,117.22,117.18,46.44645799]
[1743719912023,152.57805799,117.22,117.18,29.8684]
[1743719912445,16.57805799,117.21,117.18,8.5338]
[1743719913145,16.57805799,117.21,117.17,8.5346]
[1743719913741,146.1767,117.23,117.18,16.57805799]
[1743719913742,154.22435799,117.23,117.18,16.57805799]
[1743719915148,137.6463,117.23,117.2,8.5324]
[1743719915349,154.22435799,117.23,117.2,8.5324]
[1743719915647,18.22435799,117.23,117.2,8.5324]
[1743719916349,16.57805799,117.21,117.14,29.8786]
[1743719916554,16.57805799,117.2,117.15,16.57805799]
[1743719917253,16.57805799,117.2,117.16,8.5353]
[1743719917431,24.34021956,117.21,117.16,25.11335799]
[1743719918033,16.57805799,117.2,117.16,8.5353]
[1743719918235,7.76216157,117.21,117.16,25.11335799]
[1743719918438,16.57805799,117.2,117.16,25.11335799]
[1743719918635,24.34021956,117.21,117.16,25.11335799]
[1743719920744,137.6463,117.23,117.17,16.57805799]
[1743719921051,18.22435799,117.23,117.18,16.57805799]
[1743719921234,1.6463,117.23,117.19,16.57805799]
[1743719921763,1.6463,117.23,117.2,8.5324]
[1743719923659,1.6463,117.23,117.19,47.15078547]
[1743719923860,27.46508547,117.23,117.18,34.35258547]
[1743719924075,1.6463,117.23,117.18,34.35258547]
[1743719924372,27.46508547,117.23,117.18,34.35258547]
[1743719925440,27.46508547,117.23,117.19,25.81878547]
[1743719925644,27.46508547,117.23,117.2,8.5324]
[1743719926846,25.81878547,117.22,117.19,8.5331]
[1743719927945,25.81878547,117.22,117.18,8.5338]
[1743719928266,25.81878547,117.22,117.18,29.8684]
[1743719931559,25.81878547,117.21,117.18,8.5338]
[1743719931949,25.81878547,117.21,117.17,8.5346]
[1743719932358,25.81878547,117.21,117.17,29.8711]
[1743719935387,25.81878547,117.19,117.15,8.536]
[1743719935763,25.81878547,117.18,117.15,8.536]
[1743719936164,47.35728547,117.18,117.14,8.5367]
[1743719936483,25.81878547,117.17,117.13,8.5375]
[1743719936672,47.35728547,117.18,117.13,34.35628547]
[1743719937262,26.10310861,117.17,117.13,8.5375]